fUST/lending_fUST_20250504
["ID","MTS","AMOUNT","RATE_DAILY","PERIOD"]
[359789649,1746349841141,-400.0,0.00035616,15]
[359789650,1746349841151,-406.63350906,0.00035616,15]
[359789651,1746349841160,-416.15629228,0.00035616,15]
[359789652,1746349841169,-402.46508164,0.00035616,15]
[359789653,1746349841179,-402.37394809,0.00035616,15]
[359789654,1746349841188,-400.0,0.00035616,15]
[359789655,1746349841198,-529.42,0.00035616,15]
[359789656,1746349841208,-403.51810092,0.00035616,15]
[359789657,1746349841217,-515.85888574,0.00035616,15]
[359789658,1746349841227,-403.36226688,0.00035616,15]
[359789659,1746349841236,-453.25,0.00035616,15]
[359789660,1746349841246,-402.97516346,0.00035616,15]
[359789661,1746349841256,-402.15112037,0.00035616,15]
[359789662,1746349841266,-401.74104797,0.00035616,15]
[359789663,1746349841275,-403.61505174,0.00035616,15]
[359789664,1746349841284,-410.41564781,0.00035616,15]
[359789665,1746349841294,-513.43293096,0.00035616,15]
[359789666,1746349841304,-505.61262884,0.00035616,15]
[359789667,1746349841314,-402.33555041,0.00035616,15]
[359789668,1746349841323,-400.0,0.00035616,15]
[359789669,1746349841333,-400.0,0.00035616,15]
[359789670,1746349841344,-407.1475775,0.00035616,15]
[359789671,1746349841356,-404.93318753,0.00035616,15]
[359789672,1746349841366,-400.0,0.00035616,15]
[359789673,1746349841375,-400.0,0.00035616,15]
[359789674,1746349841385,-365.69,0.00035616,15]
[359789675,1746349841397,-415.21204392,0.00035616,15]
[359789676,1746349841407,-400.0,0.00035616,15]
[359789677,1746349841417,-400.0,0.00035616,15]
[359789678,1746349841428,-400.0,0.00035616,15]
[359789679,1746349841437,-400.0,0.00035616,15]
[359789680,1746349841447,-2333.7,0.00035616,15]
[359789681,1746349841457,-152.67,0.00035616,15]
[359789682,1746349841466,-2333.7,0.00035616,15]
[359789683,1746349841476,-2333.7,0.00035616,15]
[359789684,1746349841485,-2333.7,0.00035616,15]
[359789685,1746349841494,-2333.7,0.00035616,15]
[359789686,1746349841505,-400.0,0.00035616,15]
[359789687,1746349841516,-400.0,0.00035616,15]
[359789688,1746349841526,-382.18,0.00035616,15]
[359789689,1746349841535,-1000.0,0.00035616,5]
[359789690,1746349841545,-401.66071145,0.00035616,15]
[359789691,1746349841555,-466.05067677,0.00035616,15]
[359789692,1746349841564,-402.78327386,0.00035616,15]
[359789693,1746349841574,-400.0,0.00035616,15]
[359789694,1746349841583,-400.0,0.00035616,15]
[359789695,1746349841592,-400.0,0.00035616,15]
[359789696,1746349841602,-400.0,0.00035616,15]
[359789697,1746349841612,-400.0,0.00035616,15]
[359789698,1746349841622,-150.6,0.00035616,15]
[359789699,1746349841632,-538.48520442,0.00035616,15]
[359789700,1746349841641,-408.95548715,0.00035616,15]
[359789701,1746349841651,-2627.55,0.00035616,15]
[359789702,1746349841660,-2627.55,0.00035616,15]
[359789703,1746349841669,-2627.55,0.00035616,15]
[359789704,1746349841679,-2627.55,0.00035616,15]
[359789705,1746349841688,-2627.55,0.00035616,15]
[359789706,1746349841698,-2627.55,0.00035616,15]
[359789707,1746349841707,-2627.55,0.00035616,15]
[359789708,1746349841716,-2627.55,0.00035616,15]
[359789709,1746349841725,-2627.55,0.00035616,15]
[359789710,1746349841734,-2627.55,0.00035616,15]
[359789711,1746349841744,-2627.55,0.00035616,15]
[359789712,1746349841753,-2627.55,0.00035616,15]
[359789713,1746349841762,-2627.55,0.00035616,15]
[359789714,1746349841772,-2627.55,0.00035616,15]
[359789715,1746349841781,-400.0,0.00035616,15]
[359789716,1746349841791,-2627.55,0.00035616,15]
[359789717,1746349841800,-2627.55,0.00035616,15]
[359789718,1746349841810,-2627.55,0.00035616,15]
[359789719,1746349841819,-2627.55,0.00035616,15]
[359789720,1746349841829,-400.0,0.00035616,15]
[359789721,1746349841839,-216.84,0.00035616,15]
[359789722,1746349841847,-2627.55,0.00035616,15]
[359789723,1746349841857,-2627.55,0.00035616,15]
[359789724,1746349841865,-2627.55,0.00035616,15]
[359789725,1746349841874,-400.0,0.00035616,15]
[359789726,1746349841884,-2627.55,0.00035616,15]
[359789727,1746349841894,-2627.55,0.00035616,15]
[359789728,1746349841903,-2627.73,0.00035616,15]
[359789729,1746349841912,-400.0,0.00035616,15]
[359789730,1746349841921,-408.16822482,0.00035616,15]
[359789731,1746349841931,-400.0,0.00035616,15]
[359789732,1746349841940,-294.1,0.00035616,15]
[359789733,1746349841950,-400.0,0.00035616,15]
[359789734,1746349841970,-500.0,0.00035616,15]
[359789735,1746349841980,-549.21187809,0.00035616,15]
[359789736,1746349841989,-400.0,0.00035616,15]
[359789737,1746349841999,-456.07,0.00035616,15]
[359789738,1746349842008,-400.0,0.00035616,15]
[359789739,1746349842018,-405.35923398,0.00035616,15]
[359789740,1746349842028,-400.0,0.00035616,15]
[359789741,1746349842037,-400.0,0.00035616,15]
[359789742,1746349842047,-400.0,0.00035616,15]
[359789743,1746349842056,-400.0,0.00035616,15]
[359789744,1746349842066,-400.0,0.00035616,15]
[359789745,1746349842076,-317.37,0.00035616,15]
[359789746,1746349842085,-400.0,0.00035616,15]
[359789747,1746349842095,-168.76,0.00035616,15]
[359789748,1746349842104,-686.57,0.00035616,15]
[359789749,1746349842113,-686.57,0.00035616,15]
[359789750,1746349842123,-686.57,0.00035616,15]
[359789751,1746349842133,-686.57,0.00035616,15]
[359789752,1746349842142,-686.57,0.00035616,15]
[359789753,1746349842152,-400.0,0.00035616,15]
[359789754,1746349842162,-150.49,0.00035616,15]
[359789755,1746349842171,-400.0,0.00035616,15]
[359789756,1746349842181,-400.0,0.00035616,15]
[359789757,1746349842190,-400.0,0.00035616,15]
[359789758,1746349842200,-400.0,0.00035616,15]
[359789759,1746349842209,-312.6,0.00035616,15]
[359789760,1746349842219,-403.38056221,0.00035616,15]
[359789761,1746349842229,-400.0,0.00035616,15]
[359789762,1746349842238,-400.0,0.00035616,15]
[359789763,1746349842248,-400.0,0.00035616,15]
[359789764,1746349842258,-400.0,0.00035616,15]
[359789765,1746349842268,-400.0,0.00035616,15]
[359789766,1746349842277,-400.0,0.00035616,15]
[359789767,1746349842287,-400.0,0.00035616,15]
[359789768,1746349842297,-501.14893543,0.00035616,15]
[359789769,1746349842307,-404.19140383,0.00035616,15]
[359789770,1746349842316,-404.77193635,0.00035616,15]
[359789771,1746349842326,-400.0,0.00035616,15]
[359789772,1746349842335,-502.67109702,0.00035616,15]
[359789773,1746349842346,-411.51053978,0.00035616,15]
[359789774,1746349842358,-400.0,0.00035616,15]
[359789775,1746349842367,-400.0,0.00035616,15]
[359789776,1746349842377,-400.0,0.00035616,15]
[359789777,1746349842387,-400.0,0.00035616,15]
[359789778,1746349842397,-402.90214273,0.00035616,15]
[359789779,1746349842407,-405.57153636,0.00035616,15]
[359789780,1746349842416,-400.0,0.00035616,15]
[359789781,1746349842428,-402.96497268,0.00035616,15]
[359789782,1746349842438,-400.0,0.00035616,15]
[359789783,1746349842449,-402.89838613,0.00035616,15]
[359789784,1746349842459,-400.0,0.00035616,15]
[359789785,1746349842470,-407.25233084,0.00035616,15]
[359789786,1746349842480,-400.0,0.00035616,15]
[359789787,1746349842489,-405.10276215,0.00035616,15]
[359789788,1746349842499,-400.0,0.00035616,15]
[359789790,1746349842509,-400.0,0.00035616,15]
[359789791,1746349842519,-400.0,0.00035616,15]
[359789792,1746349842529,-400.0,0.00035616,15]
[359789796,1746349842663,-444.66489051,0.00035616,15]
[359789798,1746349842674,-401.83287287,0.00035616,15]
[359789799,1746349842684,-400.92060396,0.00035616,15]
[359789800,1746349842693,-400.0,0.00035616,15]
[359789801,1746349842702,-401.34913735,0.00035616,15]
[359789802,1746349842712,-401.82975682,0.00035616,15]
[359789803,1746349842721,-401.18727522,0.00035616,15]
[359789804,1746349842731,-400.0,0.00035616,15]
[359789805,1746349842740,-400.0,0.00035616,15]
[359789806,1746349842750,-402.85576802,0.00035616,15]
[359789807,1746349842760,-401.31334913,0.00035616,15]
[359789808,1746349842770,-403.26610544,0.00035616,15]
[359789809,1746349842779,-400.0,0.00035616,15]
[359789810,1746349842790,-403.06626174,0.00035616,15]
[359789811,1746349842800,-400.0,0.00035616,15]
[359789812,1746349842810,-401.17204893,0.00035616,12]
[359789813,1746349842819,-404.55815723,0.00035616,15]
[359789814,1746349842829,-405.17068124,0.00035616,15]
[359789815,1746349842839,-400.0,0.00035616,15]
[359789816,1746349842849,-400.0,0.00035616,15]
[359789817,1746349842858,-402.19412973,0.00035616,15]
[359789818,1746349842867,-402.23641165,0.00035616,15]
[359789819,1746349842877,-400.0,0.00035616,15]
[359789820,1746349842887,-406.10549663,0.00035616,15]
[359789821,1746349842896,-271.18321819,0.00035616,15]
[359789822,1746349842905,-402.09903821,0.00035616,15]
[359789823,1746349842914,-401.14409669,0.00035616,15]
[359789824,1746349842924,-400.0,0.00035616,15]
[359789825,1746349842934,-401.8221752,0.00035616,15]
[359789826,1746349842943,-400.0,0.00035616,15]
[359789827,1746349842953,-400.0,0.00035616,15]
[359789828,1746349842962,-400.0,0.00035616,15]
[359789829,1746349842971,-360.01,0.00035616,15]
[359789830,1746349842981,-400.0,0.00035616,15]
[359789831,1746349842991,-506.25,0.00035616,15]
[359789832,1746349843000,-400.0,0.00035616,15]
[359789833,1746349843010,-400.0,0.00035616,15]
[359789834,1746349843019,-400.0,0.00035616,15]
[359789835,1746349843029,-298.06,0.00035616,15]
[359789836,1746349843038,-404.34904503,0.00035616,5]
[359789837,1746349843047,-410.39647924,0.00035616,15]
[359789838,1746349843057,-403.6488556,0.00035616,15]
[359789839,1746349843066,-400.69191409,0.00035616,15]
[359789840,1746349843076,-405.30368883,0.00035616,15]
[359789841,1746349843086,-238.86977616,0.00035616,15]
[359789842,1746349843095,-400.0,0.00035616,15]
[359789843,1746349843105,-374.12,0.00035616,15]
[359789844,1746349843115,-401.85139555,0.00035616,15]
[359789845,1746349843126,-305.75104148,0.00035616,15]
[359789846,1746349843136,-510.33194622,0.00035616,15]
[359789847,1746349843146,-400.0,0.00035616,15]
[359789848,1746349843158,-400.0,0.00035616,15]
[359789849,1746349843167,-519.73,0.00035616,15]
[359789850,1746349843177,-403.33719584,0.00035616,15]
[359789851,1746349843187,-400.98885094,0.00035616,15]
[359789852,1746349843197,-400.0,0.00035616,15]
[359789853,1746349843207,-400.0,0.00035616,15]
[359789854,1746349843218,-356.92,0.00035616,15]
[359789855,1746349843227,-400.0,0.00035616,15]
[359789856,1746349843238,-400.0,0.00035616,15]
[359789857,1746349843249,-403.43900655,0.00035616,15]
[359789858,1746349843259,-416.36,0.00035616,15]
[359789859,1746349843269,-401.78611925,0.00035616,15]
[359789860,1746349843279,-400.0,0.00035616,15]
[359789861,1746349843288,-404.66824521,0.00035616,15]
[359789862,1746349843297,-405.33965454,0.00035616,15]
[359789863,1746349843306,-405.36225519,0.00035616,15]
[359789864,1746349843316,-433.14,0.00035616,15]
[359789865,1746349843326,-400.0,0.00035616,15]
[359789866,1746349843336,-400.0,0.00035616,15]
[359789867,1746349843345,-167.69077936,0.00035616,15]
[359789868,1746349843358,-400.0,0.00035616,15]
[359789869,1746349843368,-402.64968993,0.00035616,15]
[359789870,1746349843378,-456.23,0.00035616,15]
[359789871,1746349843387,-400.0,0.00035616,15]
[359789872,1746349843398,-400.0,0.00035616,15]
[359789873,1746349843408,-400.0,0.00035616,15]
[359789874,1746349843418,-400.0,0.00035616,15]
[359789875,1746349843430,-400.0,0.00035616,15]
[359789876,1746349843441,-400.0,0.00035616,15]
[359789877,1746349843451,-402.18172674,0.00035616,15]
[359789878,1746349843461,-400.0,0.00035616,15]
[359789879,1746349843471,-406.88219815,0.00035616,15]
[359789880,1746349843481,-244.72614986,0.00035616,15]
[359789881,1746349843491,-402.97092962,0.00035616,15]
[359789882,1746349843501,-408.65990892,0.00035616,15]
[359789883,1746349843511,-403.32198115,0.00035616,15]
[359789884,1746349843521,-353.20355306,0.00035616,15]
[359789885,1746349843531,-400.0,0.00035616,15]
[359789886,1746349843542,-404.79673978,0.00035616,15]
[359789887,1746349843552,-400.0,0.00035616,15]
[359789888,1746349843562,-507.12653663,0.00035616,15]
[359789889,1746349843572,-405.46586656,0.00035616,15]
[359789890,1746349843582,-399.84138836,0.00035616,15]
[359789891,1746349843592,-406.669453,0.00035616,15]
[359789892,1746349843602,-402.69004877,0.00035616,15]
[359789893,1746349843611,-400.0,0.00035616,15]
[359789894,1746349843622,-400.0,0.00035616,15]
[359789895,1746349843632,-400.0,0.00035616,15]
[359789896,1746349843642,-317.81,0.00035616,15]
[359789897,1746349843652,-403.33073043,0.00035616,15]
[359789898,1746349843662,-400.0,0.00035616,15]
[359789899,1746349843672,-400.0,0.00035616,15]
[359789900,1746349843682,-400.0,0.00035616,15]
[359789901,1746349843691,-400.0,0.00035616,15]
[359789902,1746349843701,-242.65,0.00035616,15]
[359789903,1746349843711,-400.0,0.00035616,15]
[359789904,1746349843720,-400.0,0.00035616,15]
[359789905,1746349843730,-506.45452851,0.00035616,15]
[359789906,1746349843740,-446.29,0.00035616,15]
[359789907,1746349843749,-400.0,0.00035616,15]
[359789908,1746349843759,-400.0,0.00035616,15]
[359789909,1746349843769,-400.0,0.00035616,15]
[359789910,1746349843778,-505.95056644,0.00035616,15]
[359789911,1746349843788,-401.94612986,0.00035616,15]
[359789912,1746349843798,-403.33291778,0.00035616,15]
[359789913,1746349843808,-404.23233411,0.00035616,15]
[359789914,1746349843818,-404.78387305,0.00035616,15]
[359789915,1746349843829,-400.0,0.00035616,15]
[359789916,1746349843839,-403.40830348,0.00035616,15]
[359789917,1746349843849,-506.78975245,0.00035616,15]
[359789918,1746349843858,-401.91669486,0.00035616,15]
[359789919,1746349843869,-400.0,0.00035616,15]
[359789920,1746349843879,-401.62023745,0.00035616,15]
[359789921,1746349843889,-400.0,0.00035616,15]
[359789922,1746349843899,-400.0,0.00035616,15]
[359789923,1746349843909,-400.0,0.00035616,15]
[359789924,1746349843919,-400.0,0.00035616,15]
[359789925,1746349843929,-404.05162324,0.00035616,15]
[359789926,1746349843939,-401.13482036,0.00035616,15]
[359789927,1746349843948,-400.0,0.00035616,15]
[359789928,1746349843958,-401.69328483,0.00035616,15]
[359789929,1746349843968,-404.73119568,0.00035616,15]
[359789930,1746349843978,-412.41207518,0.00035616,15]
[359789931,1746349843987,-400.57366396,0.00035616,2]
[359789932,1746349843997,-407.74551894,0.00035616,15]
[359789933,1746349844007,-400.0,0.00035616,15]
[359789934,1746349844017,-209.95288954,0.00035616,15]
[359789935,1746349844026,-401.85299829,0.00035616,15]
[359789936,1746349844036,-400.0,0.00035616,15]
[359789937,1746349844045,-401.90061357,0.00035616,15]
[359789938,1746349844055,-400.0,0.00035616,15]
[359789939,1746349844064,-405.95946573,0.00035616,15]
[359789940,1746349844074,-403.91299845,0.00035616,15]
[359789941,1746349844083,-400.0,0.00035616,15]
[359789942,1746349844093,-404.37213231,0.00035616,15]
[359789943,1746349844103,-400.0,0.00035616,15]
[359789945,1746349844112,-400.0,0.00035616,15]
[359789947,1746349844122,-400.0,0.00035616,15]
[359789949,1746349844132,-404.8605593,0.00035616,15]
[359789950,1746349844141,-306.32176874,0.00035616,15]
[359789951,1746349844151,-405.56559183,0.00035616,15]
[359789952,1746349844160,-400.74028791,0.00035616,15]
[359789953,1746349844169,-400.0,0.00035616,15]
[359789954,1746349844178,-505.59062065,0.00035616,15]
[359789955,1746349844187,-507.9461944,0.00035616,15]
[359789956,1746349844196,-400.0,0.00035616,15]
[359789957,1746349844205,-442.75430672,0.00035616,15]
[359789958,1746349844215,-401.39060718,0.00035616,15]
[359789959,1746349844225,-401.70113711,0.00035616,15]
[359789960,1746349844234,-411.53,0.00035616,15]
[359789961,1746349844243,-402.73401008,0.00035616,15]
[359789962,1746349844253,-408.17395242,0.00035616,15]
[359789963,1746349844262,-400.0,0.00035616,15]
[359789964,1746349844271,-405.81884868,0.00035616,15]
[359789965,1746349844280,-400.0,0.00035616,15]
[359789966,1746349844289,-401.26365716,0.00035616,15]
[359789967,1746349844299,-400.0,0.00035616,15]
[359789968,1746349844308,-534.51071282,0.00035616,15]
[359789969,1746349844318,-500.0,0.00035616,15]
[359789970,1746349844327,-500.0,0.00035616,15]
[359789971,1746349844336,-443.97968791,0.00035616,15]
[359789972,1746349844345,-400.0,0.00035616,15]
[359789973,1746349844357,-400.0,0.00035616,15]
[359789974,1746349844366,-400.0,0.00035616,15]
[359789975,1746349844375,-404.37962741,0.00035616,15]
[359789976,1746349844384,-266.67,0.00035616,15]
[359789977,1746349844395,-405.45315207,0.00035616,15]
[359789978,1746349844404,-400.0,0.00035616,15]
[359789979,1746349844413,-407.93539,0.00035616,15]
[359789980,1746349844422,-400.0,0.00035616,15]
[359789981,1746349844432,-497.36,0.00035616,15]
[359789982,1746349844441,-403.82789958,0.00035616,15]
[359789983,1746349844450,-295.09464119,0.00035616,15]
[359789984,1746349844460,-406.35753184,0.00035616,15]
[359789985,1746349844470,-400.0,0.00035616,15]
[359789986,1746349844479,-400.0,0.00035616,15]
[359789987,1746349844488,-400.0,0.00035616,15]
[359789988,1746349844497,-400.0,0.00035616,15]
[359789989,1746349844506,-400.0,0.00035616,15]
[359789990,1746349844515,-297.32,0.00035616,15]
[359789991,1746349844524,-400.0,0.00035616,15]
[359789992,1746349844556,-400.0,0.00035616,15]
[359789993,1746349844565,-400.0,0.00035616,15]
[359789994,1746349844575,-353.3,0.00035616,15]
[359789995,1746349844584,-400.0,0.00035616,15]
[359789996,1746349844593,-400.0,0.00035616,15]
[359789997,1746349844603,-400.0,0.00035616,15]
[359789998,1746349844612,-400.0,0.00035616,15]
[359789999,1746349844621,-500.0,0.00035616,15]
[359790000,1746349844631,-400.0,0.00035616,15]
[359790001,1746349844640,-500.0,0.00035616,15]
[359790002,1746349844650,-500.0,0.00035616,15]
[359790003,1746349844659,-500.0,0.00035616,15]
[359790004,1746349844668,-500.0,0.00035616,15]
[359790005,1746349844677,-550.18334761,0.00035616,15]
[359790006,1746349844686,-407.54802865,0.00035616,15]
[359790007,1746349844696,-400.0,0.00035616,15]
[359790008,1746349844705,-790.0,0.00035616,15]
[359790009,1746349844715,-790.0,0.00035616,15]
[359790010,1746349844725,-400.0,0.00035616,15]
[359790011,1746349844734,-790.0,0.00035616,15]
[359790012,1746349844744,-400.0,0.00035616,15]
[359790013,1746349844753,-531.37,0.00035616,15]
[359790014,1746349844762,-790.0,0.00035616,15]
[359790015,1746349844772,-418.11427221,0.00035616,15]
[359790016,1746349844781,-790.0,0.00035616,15]
[359790017,1746349844791,-790.0,0.00035616,15]
[359790018,1746349844800,-790.0,0.00035616,15]
[359790019,1746349844809,-790.0,0.00035616,15]
[359790020,1746349844818,-424.82,0.00035616,15]
[359790021,1746349844827,-790.0,0.00035616,15]
[359790022,1746349844837,-406.65447188,0.00035616,15]
[359790023,1746349844846,-400.0,0.00035616,15]
[359790024,1746349844854,-790.0,0.00035616,15]
[359790025,1746349844864,-400.0,0.00035616,15]
[359790026,1746349844873,-412.88230758,0.00035616,15]
[359790027,1746349844882,-404.32338373,0.00035616,15]
[359790028,1746349844891,-400.0,0.00035616,15]
[359790029,1746349844901,-413.15891112,0.00035616,15]
[359790030,1746349844910,-376.23962103,0.00035616,15]
[359790031,1746349844920,-502.67309102,0.00035616,15]
[359790032,1746349844929,-434.62,0.00035616,15]
[359790033,1746349844938,-400.0,0.00035616,15]
[359790034,1746349844947,-411.23213234,0.00035616,15]
[359790035,1746349844957,-494.24,0.00035616,15]
[359790036,1746349844966,-400.8144907,0.00035616,15]
[359790037,1746349844975,-400.0,0.00035616,15]
[359790038,1746349844985,-406.08489239,0.00035616,15]
[359790039,1746349844994,-401.35991326,0.00035616,15]
[359790040,1746349845004,-406.97297192,0.00035616,15]
[359790041,1746349845014,-409.81960406,0.00035616,15]
[359790042,1746349845025,-408.46703448,0.00035616,15]
[359790043,1746349845034,-400.0,0.00035616,15]
[359790044,1746349845043,-408.576918,0.00035616,15]
[359790045,1746349845053,-400.0,0.00035616,15]
[359790046,1746349845062,-404.66777287,0.00035616,15]
[359790047,1746349845072,-403.58880771,0.00035616,15]
[359790048,1746349845081,-400.0,0.00035616,15]
[359790049,1746349845091,-400.0,0.00035616,15]
[359790050,1746349845100,-400.0,0.00035616,15]
[359790051,1746349845109,-400.0,0.00035616,15]
[359790052,1746349845119,-400.0,0.00035616,15]
[359790053,1746349845128,-402.89079228,0.00035616,15]
[359790054,1746349845138,-406.60636688,0.00035616,15]
[359790055,1746349845147,-408.43794049,0.00035616,15]
[359790056,1746349845157,-400.0,0.00035616,15]
[359790057,1746349845166,-400.0,0.00035616,15]
[359790058,1746349845175,-274.92,0.00035616,15]
[359790059,1746349845185,-404.61678645,0.00035616,15]
[359790060,1746349845194,-203.58449639,0.00035616,15]
[359790061,1746349845363,-739.5,0.00030514,30]
[359790062,1746349845373,-196.41550361,0.00035616,15]
[359790063,1746349845383,-401.75213192,0.00035616,15]
[359790064,1746349845395,-401.97358396,0.00035616,15]
[359790065,1746349845405,-400.0,0.00035616,15]
[359790066,1746349845415,-507.28159401,0.00035616,15]
[359790067,1746349845425,-400.0,0.00035616,15]
[359790069,1746349845434,-504.93269015,0.00035616,15]
[359790070,1746349845444,-403.64020951,0.00035616,15]
[359790071,1746349845453,-404.45371331,0.00035616,15]
[359790072,1746349845462,-400.0,0.00035616,15]
[359790073,1746349845472,-400.0,0.00035616,15]
[359790074,1746349845481,-400.0,0.00035616,15]
[359790075,1746349845490,-400.0,0.00035616,15]
[359790076,1746349845500,-400.0,0.00035616,15]
[359790077,1746349845509,-529.1,0.00035616,15]
[359790078,1746349845519,-500.0,0.00035616,15]
[359790080,1746349845528,-408.53445548,0.00035616,15]
[359790082,1746349845537,-402.42776428,0.00035616,15]
[359790084,1746349845547,-402.57411463,0.00035616,15]
[359790086,1746349845557,-423.44,0.00035616,15]
[359790088,1746349845566,-184.1412759,0.00035616,15]
[359790091,1746349845579,-216.76413198,0.00035616,15]
[359790093,1746349845589,-521.11410569,0.00035616,15]
[359790095,1746349845599,-512.89328123,0.00035616,15]
[359790097,1746349845608,-209.43055113,0.00035616,15]
[359790099,1746349845621,-192.2541812,0.00035616,15]
[359790100,1746349845631,-400.0,0.00035616,15]
[359790101,1746349845641,-402.27004007,0.00035616,15]
[359790102,1746349845650,-400.0,0.00035616,15]
[359790103,1746349845660,-400.0,0.00035616,15]
[359790104,1746349845670,-189.95,0.00035616,15]
[359790106,1746349845680,-400.0,0.00035616,15]
[359790107,1746349845690,-400.0,0.00035616,15]
[359790108,1746349845699,-478.54,0.00035616,15]
[359790109,1746349845708,-400.0,0.00035616,15]
[359790110,1746349845718,-401.56546113,0.00035616,15]
[359790111,1746349845727,-400.0,0.00035616,15]
[359790112,1746349845737,-491.63,0.00035616,15]
[359790113,1746349845747,-407.24851061,0.00035616,15]
[359790114,1746349845757,-400.0,0.00035616,15]
[359790115,1746349845767,-408.61030361,0.00035616,15]
[359790116,1746349845776,-404.62402123,0.00035616,15]
[359790118,1746349845786,-262.09838461,0.00035616,7]
[359790122,1746349845826,-160.0,0.00030111,2]
[359790123,1746349845836,-140.4155661,0.00035616,7]
[359790124,1746349845845,-402.54180769,0.00035616,15]
[359790125,1746349845855,-409.56168287,0.00035616,15]
[359790126,1746349845864,-39.96061248,0.00035616,15]
[359790127,1746349845876,-360.84566528,0.00035616,15]
[359790128,1746349845885,-400.0,0.00035616,15]
[359790129,1746349845895,-173.15,0.00035616,15]
[359790130,1746349845904,-400.0,0.00035616,15]
[359790131,1746349845914,-503.84720614,0.00035616,15]
[359790132,1746349845923,-406.27924089,0.00035616,15]
[359790133,1746349845933,-405.6959954,0.00035616,15]
[359790134,1746349845943,-400.0,0.00035616,15]
[359790135,1746349845953,-401.86145036,0.00035616,15]
[359790136,1746349845962,-413.11989202,0.00035616,15]
[359790137,1746349845972,-404.19911773,0.00035616,15]
[359790138,1746349845982,-504.49418631,0.00035616,15]
[359790139,1746349845992,-405.63923885,0.00035616,15]
[359790140,1746349846003,-412.0675911,0.00035616,15]
[359790141,1746349846012,-411.73709103,0.00035616,15]
[359790142,1746349846022,-408.81973808,0.00035616,15]
[359790143,1746349846032,-502.1935175,0.00035616,15]
[359790144,1746349846041,-402.80616013,0.00035616,15]
[359790145,1746349846051,-407.08459517,0.00035616,15]
[359790146,1746349846060,-402.41636516,0.00035616,15]
[359790147,1746349846070,-402.98291781,0.00035616,15]
[359790148,1746349846080,-402.79976353,0.00035616,15]
[359790149,1746349846090,-417.81403728,0.00035616,15]
[359790150,1746349846100,-505.12213007,0.00035616,15]
[359790151,1746349846110,-401.54529447,0.00035616,15]
[359790152,1746349846119,-402.53832575,0.00035616,15]
[359790153,1746349846129,-400.0,0.00035616,15]
[359790154,1746349846139,-400.0,0.00035616,15]
[359790155,1746349846149,-418.74,0.00035616,15]
[359790156,1746349846158,-406.91046653,0.00035616,15]
[359790157,1746349846168,-959.65,0.00035616,15]
[359790158,1746349846178,-959.65,0.00035616,15]
[359790159,1746349846188,-408.90315471,0.00035616,15]
[359790160,1746349846197,-959.65,0.00035616,15]
[359790161,1746349846207,-959.65,0.00035616,15]
[359790162,1746349846217,-959.65,0.00035616,15]
[359790163,1746349846226,-959.65,0.00035616,15]
[359790164,1746349846235,-959.65,0.00035616,15]
[359790165,1746349846245,-959.65,0.00035616,15]
[359790166,1746349846255,-959.65,0.00035616,15]
[359790167,1746349846265,-959.65,0.00035616,15]
[359790168,1746349846274,-959.65,0.00035616,15]
[359790169,1746349846283,-403.65743613,0.00035616,15]
[359790170,1746349846293,-959.65,0.00035616,15]
[359790171,1746349846303,-959.65,0.00035616,15]
[359790172,1746349846312,-959.65,0.00035616,15]
[359790173,1746349846322,-959.65,0.00035616,15]